fUSD/lending_fUSD_20251129
["ID","MTS","AMOUNT","RATE_DAILY","PERIOD"]
[395103755,1764432269608,9917.14607408,0.00014591,2]
[395103756,1764432269638,10000.01,0.00014591,2]
[395103757,1764432269672,10000.01,0.00014591,2]
[395103758,1764432269700,10000.01,0.00014591,2]
[395103762,1764432308482,199.99999999,0.00025,120]
[395103765,1764432325872,166.66,0.00013699,2]
[395103766,1764432325936,166.66,0.00013868,2]
[395103767,1764432325980,166.66,0.00014037,2]
[395103768,1764432326114,166.66,0.00014206,2]
[395103776,1764432410651,9847.86,0.00013784,2]
[395103780,1764432441652,200.45,0.00019178,30]
[395103784,1764432508331,152.15,0.0001375,2]
[395103785,1764432508359,347.85,0.0001375,2]
[395103786,1764432593141,9363.39,0.00013756,2]
[395103811,1764432631952,-166.66,0.00014374,2]
[395103813,1764432631962,-1673.1847,0.00014491,2]
[395103814,1764432631971,-3573.98654998,0.00014491,2]
[395103816,1764432631993,-848.98458,0.00014491,2]
[395103818,1764432632006,-709.31483839,0.00014491,2]
[395103839,1764432632784,-946.84984893,0.00014491,2]
[395103840,1764432632794,-30.48287957,0.00014491,2]
[395103867,1764432638932,-374.29354675,0.00014491,2]
[395103868,1764432638942,-116.00176679,0.00014491,2]
[395103869,1764432639912,-720.73329195,0.00014491,2]
[395103870,1764432639923,-1200.0,0.00014542,2]
[395103871,1764432639932,-166.66,0.00014543,2]
[395103872,1764432639943,-479.15889,0.0001455,2]
[395103873,1764432639953,-151.0,0.00014588,2]
[395103874,1764432639962,-151.0,0.00014588,2]
[395103875,1764432639972,-275.57955207,0.00014588,2]
[395103876,1764432639982,-300.0,0.00014588,2]
[395103877,1764432639992,-500.0,0.00014589,2]
[395103878,1764432640002,-500.0,0.00014589,2]
[395103879,1764432640013,-500.0,0.00014589,2]
[395103880,1764432640024,-500.0,0.00014589,2]
[395103881,1764432640034,-500.0,0.00014589,2]
[395103882,1764432640043,-500.0,0.00014589,2]
[395103883,1764432640053,-500.0,0.00014589,2]
[395103884,1764432640063,-500.0,0.00014589,2]
[395103885,1764432640073,-500.0,0.00014589,2]
[395103886,1764432640082,-500.0,0.00014589,2]
[395103887,1764432640092,-500.0,0.00014589,2]
[395103888,1764432640102,-500.0,0.00014589,2]
[395103889,1764432640114,-500.0,0.00014589,2]
[395103890,1764432640124,-468.93077531,0.00014589,2]
[395103891,1764432640134,-197.50363265,0.00014589,2]
[395103892,1764432640144,-500.0,0.00014589,2]
[395103893,1764432640154,-500.0,0.00014589,2]
[395103894,1764432640163,-500.0,0.00014589,2]
[395103895,1764432640173,-500.0,0.00014589,2]
[395103896,1764432640183,-500.0,0.00014589,2]
[395103897,1764432640192,-500.0,0.00014589,2]
[395103898,1764432640201,-155.56578465,0.00014589,2]
[395103899,1764432640211,-500.0,0.00014589,2]
[395103900,1764432640221,-500.0,0.00014589,2]
[395103901,1764432640231,-500.0,0.00014589,2]
[395103902,1764432640240,-208.73719244,0.00014589,2]
[395103903,1764432640249,-500.0,0.00014589,2]
[395103905,1764432640259,-500.0,0.00014589,2]
[395103906,1764432640269,-500.0,0.00014589,2]
[395103908,1764432640278,-253.35757872,0.00014589,2]
[395103909,1764432640287,-500.0,0.00014589,2]
[395103910,1764432640298,-500.0,0.00014589,2]
[395103911,1764432640307,-500.0,0.00014589,2]
[395103912,1764432640316,-500.0,0.00014589,2]
[395103914,1764432640326,-500.0,0.00014589,2]
[395103916,1764432640336,-500.0,0.00014589,2]
[395103918,1764432640345,-500.0,0.00014589,2]
[395103919,1764432640355,-500.0,0.00014589,2]
[395103920,1764432640369,-500.0,0.00014589,2]
[395103921,1764432640378,-500.0,0.00014589,2]
[395103923,1764432640388,-500.0,0.00014589,2]
[395103924,1764432640398,-500.0,0.00014589,2]
[395103925,1764432640411,-500.0,0.00014589,2]
[395103926,1764432640421,-500.0,0.00014589,2]
[395103927,1764432640433,-500.0,0.00014589,2]
[395103928,1764432640443,-500.0,0.00014589,2]
[395103929,1764432640452,-500.0,0.00014589,2]
[395103930,1764432640462,-500.0,0.00014589,2]
[395103931,1764432640472,-500.0,0.00014589,2]
[395103932,1764432640482,-500.0,0.00014589,2]
[395103933,1764432640492,-500.0,0.00014589,2]
[395103934,1764432640502,-500.0,0.00014589,2]
[395103935,1764432640511,-500.0,0.00014589,2]
[395103936,1764432640524,-500.0,0.00014589,2]
[395103937,1764432640534,-500.0,0.00014589,2]
[395103938,1764432640544,-500.0,0.00014589,2]
[395103939,1764432640554,-500.0,0.00014589,2]
[395103940,1764432640564,-150.0,0.00014589,2]
[395103941,1764432640573,-500.0,0.0001459,2]
[395103942,1764432640583,-417.46073941,0.0001459,2]
[395103943,1764432640593,-219.2527818,0.0001459,2]
[395103944,1764432640608,-500.0,0.0001459,2]
[395103945,1764432640618,-258.3369847,0.0001459,2]
[395103946,1764432640628,-500.0,0.0001459,2]
[395103947,1764432640638,-150.0,0.0001459,2]
[395103948,1764432640649,-150.0,0.0001459,2]
[395103949,1764432640659,-500.0,0.0001459,2]
[395103950,1764432640668,-500.0,0.0001459,2]
[395103951,1764432640678,-150.0,0.0001459,2]
[395103952,1764432640687,-161360.68223779,0.00014591,2]
[395103953,1764432640707,-2278.64257238,0.00014591,2]
[395103954,1764432640744,-6040.04781648,0.00014591,2]
[395103955,1764432640755,-34990.1575605,0.00014591,2]
[395103962,1764432645976,-500.0,0.00014589,2]
[395103963,1764432645985,-5.01796416,0.00014589,2]
[395103965,1764432653489,250.0,0.00014034,2]
[395103966,1764432709627,258.611439,0.00014227,2]
[395103967,1764432811845,165.39,0.00013764,2]
[395103968,1764432976456,9834.62,0.00013795,2]
[395103969,1764432976483,10000.01,0.00013795,2]
[395103970,1764432976509,2910.9,0.00013795,2]
[395103971,1764433007910,10000.01,0.00013886,2]
[395103972,1764433007944,9640.99,0.00013886,2]
[395103973,1764433045101,500.0,0.00025,120]
[395103974,1764433184154,878.94,0.00013699,2]
[395103975,1764433239381,5667.69,0.00013714,2]
[395103976,1764433335628,3453.38,0.00013695,2]
[395103977,1764433335654,1175.15,0.00013695,2]
[395103978,1764433353815,2000.0,0.00013685,2]
[395103979,1764433516640,1105.7381,0.00014199,2]
[395103980,1764433520534,5719.1219,9e-05,2]
[395103981,1764433520561,4789.90097593,9e-05,2]
[395103982,1764433525589,1022.05984194,0.000108,2]
[395103983,1764433561107,10005.45776223,8e-05,2]
[395103984,1764433565914,9370.88885331,0.00011,2]
[395103986,1764433631298,205.0,9.8e-05,2]
[395103987,1764433635037,5314.15578336,0.0001305,2]
[395103988,1764433635423,258.44025933,0.000101,2]
[395103993,1764433666224,4400.96422503,0.00013,2]
[395103994,1764433689432,1000.0,0.000135,2]
[395103995,1764433689535,305.65891292,0.000125,2]
[395103996,1764433693533,7985.32,0.00013588,2]
[395103997,1764433696621,1321.4064631,0.0001,2]
[395103998,1764433698396,194.40024064,7.888e-05,2]
[395103999,1764433708083,2719.91850894,0.0001,2]
[395104000,1764433710774,266.76191127,0.000107,2]
[395104001,1764433718069,11837.26425898,0.0001,2]
[395104002,1764433733202,-389.2622,0.00014275,2]
[395104003,1764433733236,-195.0,0.00014275,2]
[395104004,1764433733269,-205.0,0.00014275,2]
[395104005,1764433733302,-195.0,0.0001436,2]
[395104006,1764433733339,-1000.0,0.00014387,2]
[395104007,1764433733374,-300.0,0.00014389,2]
[395104008,1764433733407,-269.85095088,0.0001439,2]
[395104009,1764433742351,-300.0,0.00014389,2]
[395104010,1764433751042,200.0,0.00014175,2]
[395104011,1764433775854,2706.23257548,0.00013588,2]
[395104012,1764433786004,-8238.4559088,0.0001439,2]
[395104013,1764433792292,-4018.31462659,0.0001439,2]
[395104014,1764433792315,-1963.38074682,0.0001439,2]
[395104015,1764433798505,737.30008267,0.00013588,2]
[395104017,1764433808060,849.077425,7.945e-05,2]
[395104032,1764433832019,-1000.0,0.00014387,2]
[395104033,1764433832029,-300.0,0.00014389,2]
[395104034,1764433832039,-1200.0,0.00014389,2]
[395104035,1764433832049,-150.0,0.00014389,2]
[395104036,1764433832058,-456.81981586,0.0001439,2]
[395104037,1764433832073,-2240.0,0.0001439,2]
[395104043,1764433832510,-4309.96996379,0.0001439,2]
[395104044,1764433832524,-3243.58488772,0.0001439,2]
[395104045,1764433832534,-2635.56849061,0.0001439,2]
[395104046,1764433832730,-335.26580545,0.0001439,2]
[395104053,1764433838383,-6791.33668644,0.0001439,2]
[395104054,1764433838450,-168.12546559,0.0001439,2]
[395104056,1764433838460,-732.14317638,0.0001439,2]
[395104058,1764433838470,-179.90063392,0.0001439,2]
[395104059,1764433838479,-493.56804,0.0001445,2]
[395104061,1764433838488,-830.48155174,0.0001445,2]
[395104062,1764433838501,-500.0,0.00014478,2]
[395104063,1764433838510,-200.0,0.00014478,2]
[395104065,1764433838520,-500.0,0.00014478,2]
[395104066,1764433838529,-200.0,0.00014478,2]
[395104068,1764433838539,-200.0,0.00014478,2]
[395104070,1764433838549,-500.0,0.00014478,2]
[395104072,1764433838558,-500.0,0.00014478,2]
[395104073,1764433838569,-500.0,0.00014478,2]
[395104075,1764433838578,-500.0,0.00014478,2]
[395104077,1764433838588,-500.0,0.00014478,2]
[395104079,1764433838597,-500.0,0.00014478,2]
[395104081,1764433838607,-500.0,0.00014478,2]
[395104083,1764433838617,-500.0,0.00014478,2]
[395104084,1764433838626,-500.0,0.00014478,2]
[395104085,1764433838635,-525.56928285,0.00014478,2]
[395104086,1764433838645,-948.32180123,0.00014481,2]
[395104087,1764433838655,-289.03410708,0.00014484,2]
[395104088,1764433838664,-500.0,0.00014484,2]
[395104089,1764433838674,-500.0,0.00014484,2]
[395104090,1764433838683,-500.0,0.00014484,2]
[395104091,1764433838696,-305.92861986,0.00014484,2]
[395104092,1764433838705,-552.79781674,0.00014484,2]
[395104093,1764433838715,-500.0,0.00014484,2]
[395104094,1764433838726,-500.0,0.00014484,2]
[395104095,1764433838735,-500.0,0.00014484,2]
[395104096,1764433838745,-500.0,0.00014484,2]
[395104097,1764433838755,-500.0,0.00014484,2]
[395104098,1764433838764,-500.0,0.00014484,2]
[395104099,1764433838774,-500.0,0.00014484,2]
[395104100,1764433838783,-500.0,0.00014484,2]
[395104101,1764433838792,-447.82919155,0.00014484,2]
[395104102,1764433838801,-394.75131306,0.00014484,2]
[395104112,1764433840517,-88.16277742,0.00014484,2]
[395104113,1764433840527,-292.06215603,0.00014484,2]
[395104114,1764433840536,-500.0,0.00014484,2]
[395104115,1764433840546,-500.0,0.00014484,2]
[395104116,1764433840555,-500.0,0.00014484,2]
[395104117,1764433840565,-500.0,0.00014484,2]
[395104118,1764433840574,-500.0,0.00014484,2]
[395104119,1764433840584,-500.0,0.00014484,2]
[395104120,1764433840594,-500.0,0.00014484,2]
[395104121,1764433840604,-500.0,0.00014484,2]
[395104122,1764433840613,-200.0,0.00014484,2]
[395104124,1764433840625,-500.0,0.00014484,2]
[395104125,1764433840634,-500.0,0.00014484,2]
[395104127,1764433840643,-348.26195947,0.00014484,2]
[395104128,1764433840653,-500.0,0.00014484,2]
[395104129,1764433840662,-500.0,0.00014484,2]
[395104130,1764433840671,-500.0,0.00014484,2]
[395104131,1764433840681,-500.0,0.00014484,2]
[395104132,1764433840690,-500.0,0.00014484,2]
[395104133,1764433840699,-500.0,0.00014484,2]
[395104134,1764433840708,-500.0,0.00014484,2]
[395104135,1764433840719,-500.0,0.00014484,2]
[395104136,1764433840728,-500.0,0.00014484,2]
[395104137,1764433840738,-500.0,0.00014484,2]
[395104138,1764433840747,-500.0,0.00014484,2]
[395104139,1764433840772,-500.0,0.00014484,2]
[395104140,1764433840782,-500.0,0.00014484,2]
[395104141,1764433840791,-500.0,0.00014484,2]
[395104142,1764433840801,-500.0,0.00014484,2]
[395104143,1764433840810,-500.0,0.00014484,2]
[395104144,1764433840819,-500.0,0.00014484,2]
[395104145,1764433840828,-500.0,0.00014484,2]
[395104146,1764433840839,-500.0,0.00014484,2]
[395104147,1764433840849,-500.0,0.00014484,2]
[395104148,1764433840858,-1003.2403803,0.00014485,2]
[395104149,1764433840868,-500.0,0.00014486,2]
[395104150,1764433840877,-362.25120489,0.00014486,2]
[395104151,1764433840887,-153.47694726,0.00014486,2]
[395104152,1764433840896,-632.85389853,0.00014486,2]
[395104153,1764433840906,-500.0,0.00014486,2]
[395104154,1764433840915,-500.18909078,0.00014486,2]
[395104155,1764433840924,-760000.0,0.00014487,2]
[395104156,1764433840933,-9999.99,0.0001449,2]
[395104157,1764433840942,-33580.8861,0.0001449,2]
[395104158,1764433840951,-1319.34,0.00014491,2]
[395104159,1764433840961,-760.2064,0.00014491,2]
[395104160,1764433840970,-150.99,0.00014491,2]
[395104161,1764433840979,-3044.74,0.00014491,2]
[395104162,1764433840989,-150.99,0.00014491,2]
[395104163,1764433840998,-9999.99,0.00014491,2]
[395104164,1764433841007,-6214.9,0.00014491,2]
[395104165,1764433841017,-9999.99,0.00014491,2]
[395104166,1764433841026,-47736.41,0.00014491,2]
[395104167,1764433841036,-999.99,0.00014491,2]
[395104168,1764433841045,-151.0,0.00014491,2]
[395104169,1764433841054,-151.0,0.00014491,2]
[395104170,1764433841064,-151.0,0.00014491,2]
[395104171,1764433841073,-156.0766,0.00014491,2]
[395104172,1764433841085,-151.0,0.00014491,2]
[395104173,1764433841095,-151.0,0.00014491,2]
[395104174,1764433841105,-251.142052,0.00014491,2]
[395104175,1764433841116,-151.0,0.00014491,2]
[395104176,1764433841126,-191.180654,0.00014491,2]
[395104177,1764433841135,-151.0,0.00014491,2]
[395104178,1764433841145,-151.0,0.00014491,2]
[395104179,1764433841158,-163.462375,0.00014491,2]
[395104180,1764433841167,-151.0,0.00014491,2]
[395104181,1764433841176,-151.0,0.00014491,2]
[395104182,1764433841186,-151.0,0.00014491,2]
[395104183,1764433841196,-151.0,0.00014491,2]
[395104184,1764433841206,-151.0,0.00014491,2]
[395104185,1764433841215,-219.81787,0.00014491,2]
[395104186,1764433841225,-151.0,0.00014491,2]
[395104187,1764433841234,-151.0,0.00014491,2]
[395104188,1764433841245,-219.81787,0.00014491,2]
[395104189,1764433841254,-219.81787,0.00014491,2]
[395104190,1764433841264,-219.81787,0.00014491,2]
[395104191,1764433841273,-255.890202,0.00014491,2]
[395104192,1764433841283,-151.0,0.00014491,2]
[395104193,1764433841293,-151.0,0.00014491,2]
[395104194,1764433841302,-151.0,0.00014491,2]
[395104195,1764433841311,-151.0,0.00014491,2]
[395104196,1764433841320,-370.130436,0.00014491,2]
[395104197,1764433841330,-370.130436,0.00014491,2]
[395104198,1764433841339,-151.0,0.00014491,2]
[395104199,1764433841349,-370.130436,0.00014491,2]
[395104200,1764433841358,-151.0,0.00014491,2]
[395104201,1764433841367,-370.130436,0.00014491,2]
[395104202,1764433841376,-151.0,0.00014491,2]
[395104203,1764433841386,-151.0,0.00014491,2]
[395104204,1764433841396,-151.0,0.00014491,2]
[395104205,1764433841405,-151.0,0.00014491,2]
[395104206,1764433841414,-151.0,0.00014491,2]
[395104207,1764433841424,-151.0,0.00014491,2]
[395104208,1764433841433,-151.0,0.00014491,2]
[395104209,1764433841442,-151.0,0.00014491,2]
[395104210,1764433841451,-151.0,0.00014491,2]
[395104211,1764433841460,-151.0,0.00014491,2]
[395104212,1764433841470,-151.0,0.00014491,2]
[395104213,1764433841482,-151.0,0.00014491,2]
[395104214,1764433841491,-244.04966817,0.00014491,2]
[395104215,1764433841501,-151.0,0.00014491,2]
[395104216,1764433841510,-222.65612674,0.0001451,2]
[395104217,1764433841519,-151.0,0.00014521,2]
[395104218,1764433841530,-2812.586,0.00014581,2]
[395104219,1764433841539,-201.537,0.00014581,2]
[395104220,1764433841548,-1087.94,0.00014582,2]
[395104221,1764433841557,-182.23056781,0.0001459,2]
[395104222,1764433841566,-500.0,0.0001459,2]
[395104223,1764433841575,-500.0,0.0001459,2]
[395104224,1764433841584,-427.95080921,0.0001459,2]
[395104225,1764433841593,-500.0,0.0001459,2]
[395104226,1764433841602,-500.0,0.0001459,2]
[395104227,1764433841611,-500.0,0.0001459,2]
[395104228,1764433841622,-190.07902691,0.0001459,2]
[395104229,1764433841978,-150.0,0.0001459,2]
[395104230,1764433841987,-150.0,0.0001459,2]
[395104231,1764433841997,-150.0,0.0001459,2]
[395104232,1764433842006,-500.0,0.0001459,2]
[395104233,1764433842015,-500.0,0.0001459,2]
[395104234,1764433842026,-500.0,0.0001459,2]
[395104235,1764433842035,-150.0,0.0001459,2]
[395104236,1764433842045,-1419.0,0.0001459,2]
[395104237,1764433842056,-500.0,0.0001459,2]
[395104238,1764433842065,-500.0,0.0001459,2]
[395104239,1764433842075,-500.0,0.0001459,2]
[395104240,1764433842089,-500.0,0.0001459,2]
[395104241,1764433842098,-500.0,0.0001459,2]
[395104242,1764433842108,-150.0,0.0001459,2]
[395104243,1764433842118,-500.0,0.0001459,2]
[395104244,1764433842128,-165.01599511,0.0001459,2]
[395104245,1764433842137,-500.0,0.0001459,2]
[395104246,1764433842147,-500.0,0.0001459,2]
[395104247,1764433842157,-150.0,0.0001459,2]
[395104248,1764433842166,-150.0,0.0001459,2]
[395104249,1764433842175,-150.0,0.0001459,2]
[395104250,1764433842185,-500.0,0.0001459,2]
[395104251,1764433842195,-151.0,0.00014591,2]
[395104252,1764433842204,-151.0,0.00014591,2]
[395104253,1764433842213,-151.0,0.00014591,2]
[395104254,1764433842223,-151.0,0.00014591,2]
[395104255,1764433842234,-151.0,0.00014591,2]
[395104256,1764433842243,-151.0,0.00014591,2]
[395104257,1764433842252,-450.347705,0.00014591,2]
[395104258,1764433842262,-151.0,0.00014591,2]
[395104259,1764433842271,-450.347705,0.00014591,2]
[395104260,1764433842281,-450.347705,0.00014591,2]
[395104261,1764433842290,-450.347705,0.00014591,2]
[395104262,1764433842299,-26340.48315351,0.000146,2]
[395104263,1764433842325,-801.50537532,0.000146,2]
[395104264,1764433842336,-707.31082017,0.000146,2]
[395104265,1764433842346,-1367.76,0.000146,2]
[395104266,1764433842357,-413.05800033,0.000146,2]
[395104267,1764433842367,-639.75560007,0.000146,2]
[395104268,1764433842399,-443.58598797,0.000146,2]
[395104291,1764433843255,-253.674082,0.00014491,2]
[395104292,1764433843265,-253.674082,0.00014491,2]
[395104293,1764433843277,-14627.74770623,0.000146,2]
[395104294,1764433843288,-26788.70902805,0.000146,2]
[395104295,1764433843297,-493.56804,0.0001462,2]
[395104296,1764433843307,-151.0,0.00014639,2]
[395104297,1764433843318,-189.08613717,0.00014639,2]
[395104298,1764433843328,-14220.15128221,0.00014669,2]
[395104299,1764433843340,-9930.29644806,0.00014669,2]
[395104300,1764433843350,-151.0,0.00014669,2]
[395104301,1764433843359,-219.81787,0.00014669,2]
[395104302,1764433843369,-151.0,0.00014669,2]
[395104303,1764433843378,-151.0,0.00014669,2]
[395104304,1764433843389,-219.81787,0.00014669,2]
[395104305,1764433843399,-219.81787,0.00014669,2]
[395104306,1764433843408,-219.81787,0.00014669,2]
[395104307,1764433843418,-151.0,0.00014669,2]
[395104308,1764433843428,-151.0,0.00014669,2]
[395104309,1764433843437,-151.0,0.00014669,2]
[395104310,1764433843447,-151.0,0.00014669,2]
[395104311,1764433843456,-370.130436,0.00014669,2]
[395104312,1764433843465,-370.130436,0.00014669,2]
[395104313,1764433843474,-151.0,0.00014669,2]
[395104314,1764433843483,-370.130436,0.00014669,2]
[395104315,1764433843493,-370.130436,0.00014669,2]
[395104316,1764433843502,-151.0,0.00014669,2]
[395104317,1764433843511,-287.074658,0.00014669,2]
[395104318,1764433843521,-151.0,0.00014669,2]
[395104319,1764433843530,-151.0,0.00014669,2]
[395104320,1764433843539,-151.0,0.00014669,2]
[395104321,1764433843548,-151.0,0.00014669,2]
[395104322,1764433843557,-151.0,0.00014669,2]
[395104324,1764433843567,-261.560768,0.00014669,2]
[395104325,1764433843577,-151.0,0.00014669,2]
[395104326,1764433843586,-151.0,0.00014669,2]
[395104327,1764433843596,-151.0,0.00014669,2]
[395104328,1764433843605,-253.674082,0.00014669,2]
[395104329,1764433843616,-253.674082,0.00014669,2]
[395104330,1764433843626,-242.79480687,0.0001469,2]
[395104331,1764433843637,-151.89822632,0.00014691,2]
[395104332,1764433843646,-152.07277894,0.00014691,2]
[395104333,1764433843655,-150.0,0.00014691,2]
[395104334,1764433843665,-150.0,0.00014691,2]
[395104335,1764433843674,-150.0,0.00014691,2]
[395104336,1764433843684,-150.0,0.00014691,2]
[395104337,1764433843694,-150.0,0.00014691,2]
[395104338,1764433843704,-288.12557967,0.00014691,2]
[395104339,1764433843714,-258.28528088,0.00014691,2]
[395104340,1764433843725,-222.31104798,0.00014691,2]
[395104341,1764433843734,-150.0,0.00014691,2]
[395104342,1764433843743,-167.219592,0.00014691,2]
[395104343,1764433843753,-167.219592,0.00014691,2]
[395104344,1764433843762,-167.219592,0.00014691,2]
[395104345,1764433843772,-167.219592,0.00014691,2]
[395104346,1764433843781,-744.159204,0.00014691,2]
[395104347,1764433843791,-403.041768,0.00014691,2]
[395104348,1764433843800,-744.159204,0.00014691,2]
[395104349,1764433843810,-403.041768,0.00014691,2]
[395104350,1764433843820,-744.159204,0.00014691,2]
[395104351,1764433843830,-403.041768,0.00014691,2]
[395104352,1764433843839,-744.159204,0.00014691,2]
[395104353,1764433843849,-403.041768,0.00014691,2]
[395104354,1764433843858,-151.0,0.00014691,2]
[395104355,1764433843868,-151.0,0.00014691,2]
[395104356,1764433843878,-151.0,0.00014691,2]
[395104357,1764433843888,-280.976891,0.00014691,2]
[395104358,1764433843897,-151.0,0.00014691,2]
[395104359,1764433843907,-151.0,0.00014691,2]
[395104360,1764433843917,-151.0,0.00014691,2]
[395104361,1764433843927,-231.5043,0.00014691,2]
[395104362,1764433843937,-529.750646,0.00014691,2]
[395104363,1764433843946,-529.750646,0.00014691,2]
[395104364,1764433843956,-151.0,0.00014691,2]
[395104365,1764433843965,-151.0,0.00014691,2]
[395104366,1764433843975,-151.0,0.00014691,2]
[395104367,1764433843984,-151.0,0.00014691,2]
[395104368,1764433843994,-151.0,0.00014691,2]
[395104369,1764433844003,-151.0,0.00014691,2]
[395104370,1764433844013,-151.0,0.00014691,2]
[395104371,1764433844023,-295.914944,0.00014691,2]
[395104372,1764433844032,-296.881878,0.00014691,2]
[395104373,1764433844042,-222.814498,0.00014691,2]
[395104374,1764433844051,-295.914944,0.00014691,2]
[395104375,1764433844060,-529.750646,0.00014691,2]
[395104376,1764433844070,-296.881878,0.00014691,2]
[395104377,1764433844079,-295.914944,0.00014691,2]
[395104378,1764433844088,-529.750646,0.00014691,2]
[395104379,1764433844097,-296.881878,0.00014691,2]
[395104380,1764433844107,-295.914944,0.00014691,2]
[395104381,1764433844117,-296.881878,0.00014691,2]
[395104382,1764433844127,-151.0,0.00014691,2]
[395104383,1764433844137,-168.409941,0.00014691,2]
[395104384,1764433844147,-151.0,0.00014691,2]
[395104385,1764433844157,-168.409941,0.00014691,2]
[395104386,1764433844167,-151.0,0.00014691,2]
[395104387,1764433844177,-168.409941,0.00014691,2]
[395104388,1764433844188,-168.409941,0.00014691,2]
[395104389,1764433844198,-151.0,0.00014691,2]
[395104390,1764433844208,-151.0,0.00014691,2]
[395104391,1764433844217,-151.0,0.00014691,2]
[395104392,1764433844227,-151.0,0.00014691,2]
[395104393,1764433844237,-151.0,0.00014691,2]
[395104394,1764433844247,-194.467468,0.00014691,2]
[395104395,1764433844256,-151.0,0.00014691,2]
[395104396,1764433844266,-194.467468,0.00014691,2]
[395104397,1764433844275,-157.738785,0.00014691,2]
[395104398,1764433844284,-151.0,0.00014691,2]
[395104399,1764433844294,-151.0,0.00014691,2]
[395104400,1764433844304,-194.467468,0.00014691,2]
[395104401,1764433844314,-194.467468,0.00014691,2]
[395104402,1764433844324,-292.548808,0.00014691,2]
[395104403,1764433844335,-292.548808,0.00014691,2]
[395104404,1764433844344,-151.0,0.00014691,2]
[395104405,1764433844353,-151.0,0.00014691,2]
[395104406,1764433844362,-292.548808,0.00014691,2]
[395104407,1764433844372,-151.0,0.00014691,2]
[395104408,1764433844381,-292.548808,0.00014691,2]
[395104409,1764433844392,-342.458978,0.00014691,2]
[395104410,1764433844402,-151.0,0.00014691,2]
[395104411,1764433844412,-342.458978,0.00014691,2]
[395104412,1764433844422,-342.458978,0.00014691,2]
[395104413,1764433844431,-342.458978,0.00014691,2]
[395104414,1764433844442,-151.0,0.00014691,2]
[395104415,1764433844452,-151.0,0.00014691,2]
[395104416,1764433844462,-151.0,0.00014691,2]
[395104417,1764433844471,-578.874717,0.00014691,2]
[395104418,1764433844481,-578.874717,0.00014691,2]
[395104419,1764433844490,-578.874717,0.00014691,2]
[395104420,1764433844501,-578.874717,0.00014691,2]
[395104421,1764433844512,-304.768612,0.00014691,2]
[395104422,1764433844522,-304.768612,0.00014691,2]
[395104423,1764433844532,-304.768612,0.00014691,2]
[395104424,1764433844541,-304.768612,0.00014691,2]
[395104425,1764433844551,-151.0,0.00014691,2]
[395104426,1764433844560,-151.0,0.00014691,2]
[395104427,1764433844570,-151.0,0.00014691,2]
[395104428,1764433844581,-151.0,0.00014691,2]
[395104429,1764433844590,-151.0,0.00014691,2]
[395104430,1764433844600,-151.0,0.00014691,2]
[395104431,1764433844610,-151.0,0.00014691,2]
[395104432,1764433844619,-151.0,0.00014691,2]
[395104433,1764433844628,-151.0,0.00014691,2]
[395104434,1764433844638,-243.841364,0.00014691,2]
[395104435,1764433844647,-500.0,0.00014693,2]